bitfinex-derivatives/quotes_ETHF0:USTF0_20220106
["timestamp","ask_amount","ask_price","bid_price","bid_amount"]
[1641427201354,0.62250097,3536.5,3536.4,13.17922972]
[1641427201550,0.62250097,3536.7,3536.4,13.17922972]
[1641427201950,5.43848596,3537.6,3536.4,13.17922972]
[1641427202151,0.62250097,3537.5,3536.4,13.17922972]
[1641427202352,2.00479,3537.2,3536.4,15.18401972]
[1641427203353,2.00479,3537.2,3536.4,3.09401972]
[1641427203753,0.62250097,3537.1,3536.4,3.09401972]
[1641427203957,2.00479,3537.2,3536.4,3.09401972]
[1641427204157,0.132394,3537.1,3536.4,3.09401972]
[1641427204355,0.62250097,3536.5,3536.4,3.09401972]
[1641427204956,0.85249197,3536.5,3536.4,3.09401972]
[1641427205157,2.35249197,3536.5,3536.4,3.09401972]
[1641427205358,0.85249197,3536.5,3536.4,3.09401972]
[1641427205559,2.48488597,3536.5,3536.4,3.09401972]
[1641427206159,0.98488597,3536.5,3536.4,3.09401972]
[1641427207261,2.48488597,3536.5,3536.4,3.09401972]
[1641427209965,0.8266,3536.8,3536.5,0.84001043]
[1641427210165,0.132394,3536.7,3536.5,0.84001043]
[1641427210663,0.742594,3536.7,3536.4,2.00479]
[1641427210866,0.076609,3536.6,3536.4,2.00479]
[1641427211065,0.132394,3536.5,3536.4,2.00479]
[1641427211568,0.132394,3536.5,3536.1,2.00479]
[1641427211765,0.132394,3536.5,3534.8,1.5]
[1641427212064,0.132394,3536.5,3534.7,1.5]
[1641427212465,2.00479,3536.3,3535.4,2.00479]
[1641427212763,0.132394,3536.2,3535.5,0.132394]
[1641427213164,0.132394,3536.2,3535.4,2.00479]
[1641427214365,2.00479,3535.9,3535.4,2.00479]
[1641427214567,0.132394,3535.8,3535.4,2.00479]
[1641427214965,4.657728,3535.8,3535.4,2.00479]
[1641427215166,12.222394,3535.8,3533.9,32.4373]
[1641427215366,12.222394,3535.8,3533.8,31.7272]
[1641427215566,12.222394,3535.8,3533.5,1.5]
[1641427215766,12.09,3535.6,3532.2,1.85954446]
[1641427215967,12.09,3534.5,3532.2,1.85954446]
[1641427216165,12.6511,3534.5,3532.2,1.5]
[1641427216367,2.00479,3533.2,3532.4,2.00479]
[1641427216565,0.132394,3533.1,3532.4,2.00479]
[1641427218068,12.222394,3533.1,3532.4,2.00479]
[1641427218269,16.619049,3533.0,3532.0,2.00479]
[1641427218470,2.00479,3532.5,3532.0,2.00479]
[1641427218669,0.132394,3532.4,3531.6,1.5]
[1641427218972,0.745494,3532.4,3531.6,1.5]
[1641427219170,0.745494,3532.4,3531.4,2.00479]
[1641427219370,0.6131,3532.4,3531.7,0.132394]
[1641427219568,0.132394,3532.3,3531.7,1.5]
[1641427219769,2.00479,3533.2,3531.8,0.132394]
[1641427220169,2.00479,3533.2,3532.0,1.5]
[1641427220470,2.00479,3533.2,3532.3,2.00479]
[1641427220671,2.00479,3533.2,3532.4,1.632394]
[1641427220871,2.00479,3533.2,3533.1,1.5]
[1641427221069,2.00479,3533.2,3533.1,0.132394]
[1641427221470,2.00479,3533.4,3532.4,1.5]
[1641427221671,14.09479,3533.4,3532.3,2.00479]
[1641427221872,14.72429,3533.4,3532.0,1.5]
[1641427222471,2.00479,3532.6,3532.0,1.5]
[1641427222769,2.00479,3532.6,3532.5,1.5]
[1641427222971,0.79087454,3546.2,3532.5,2.412891]
[1641427223170,32.2092,3535.7,3532.5,13.002891]
[1641427223369,0.59,3534.7,3532.5,0.912891]
[1641427223574,12.09,3535.3,3532.5,0.912891]
[1641427223772,12.09,3534.7,3532.5,0.912891]
[1641427223970,12.09,3534.7,3532.5,0.229991]
[1641427224170,1.7936709,3535.0,3532.0,1.5]
[1641427224171,9.99999999,3533.7,3532.0,1.5]
[1641427224370,2.00479,3532.7,3532.0,1.5]
[1641427224572,2.762984,3532.7,3532.0,1.632394]
[1641427224773,2.762984,3532.7,3532.0,0.132394]
[1641427224972,2.762984,3532.7,3532.0,1.632394]
[1641427225473,2.762984,3532.7,3532.0,0.132394]
[1641427226373,2.00479,3532.2,3532.1,1.5]
[1641427226573,2.00479,3532.2,3532.1,1.862385]
[1641427226972,2.081399,3532.2,3532.1,0.132394]
[1641427227174,2.00479,3532.2,3532.1,0.132394]
[1641427228173,2.00479,3532.2,3532.1,1.862385]
[1641427228874,2.55742484,3533.7,3532.1,1.862385]
[1641427229073,32.7662,3534.5,3532.2,1.5]
[1641427229274,24.06464785,3535.0,3532.1,2.0708]
[1641427229275,12.09,3534.9,3532.1,2.0708]
[1641427229477,12.09,3534.9,3533.3,1.5]
[1641427229678,0.8486014,3535.3,3533.9,1.5]
[1641427229976,0.8486014,3535.3,3533.3,0.5312]
[1641427229977,1.23492923,3536.2,3533.3,0.5312]
[1641427230177,0.421,3536.6,3534.3,1.5]
[1641427230376,2.00479,3535.1,3534.3,2.60009]
[1641427230578,2.00479,3535.1,3534.4,0.132394]
[1641427230778,0.79943754,3534.8,3534.4,0.132394]
[1641427230979,0.79943754,3534.8,3534.7,1.5]
[1641427231176,0.79943754,3534.8,3534.7,0.229991]
[1641427231377,0.79943754,3534.8,3534.3,4.10009]
[1641427231578,0.79943754,3534.8,3534.7,1.5]
[1641427231777,0.79943754,3534.8,3534.5,0.132394]
[1641427231977,0.79943754,3534.8,3534.6,0.229991]
[1641427232179,3.754e-05,3534.8,3534.7,1.5]
[1641427232378,3.754e-05,3534.8,3534.7,3.637184]
[1641427233079,2.00479,3535.8,3534.7,3.637184]
[1641427233276,2.00479,3535.8,3535.7,1.5]
[1641427233477,2.00479,3535.8,3535.7,2.568185]
[1641427233977,4.28622905,3536.0,3535.7,2.568185]
[1641427234277,4.28622905,3536.0,3535.9,1.5]
[1641427234480,4.28622905,3536.0,3535.9,1.862385]
[1641427235479,4.28622905,3536.0,3535.9,0.362385]
[1641427237079,2.00479,3536.6,3535.9,0.362385]
[1641427237279,2.00479,3536.6,3536.5,1.27544634]
[1641427237480,2.00479,3536.6,3536.5,2.11154634]
[1641427237678,2.00479,3536.6,3536.5,0.8361]
[1641427238580,2.234781,3536.6,3536.5,0.8361]
[1641427238779,2.00479,3536.6,3536.5,2.11154634]
[1641427238982,2.00479,3537.0,3536.5,2.11154634]
[1641427239180,2.00479,3537.0,3536.9,1.27544634]
[1641427239382,2.56102477,3537.6,3536.9,1.27544634]
[1641427239880,2.69341877,3537.6,3536.3,1.27544634]
[1641427240380,2.56102477,3537.6,3537.5,1.27544634]
[1641427240781,2.56102477,3537.6,3537.5,2.77544634]
[1641427240981,2.56102477,3537.6,3537.5,1.27544634]
[1641427242480,2.79101577,3537.6,3537.3,2.00479]
[1641427242682,3.16522477,3537.6,3537.4,1.27544634]
[1641427242881,0.6042,3537.6,3537.4,1.27544634]
[1641427243281,0.6042,3537.6,3537.3,2.00479]
[1641427243282,0.229991,3537.5,3537.3,2.00479]
[1641427243479,0.6042,3537.6,3537.3,2.00479]
[1641427243681,2.00479,3538.1,3537.3,2.00479]
[1641427243881,0.132394,3538.0,3537.3,2.00479]
[1641427244684,0.132394,3538.0,3537.4,1.27544634]
[1641427245081,0.132394,3538.0,3537.3,2.00479]
[1641427245483,0.132394,3538.0,3537.6,1.27544634]
[1641427245684,0.132394,3538.0,3537.3,3.28023634]
[1641427246690,0.132394,3538.0,3537.6,1.27544634]
[1641427246886,0.132394,3538.0,3537.3,3.28023634]
[1641427248687,12.222394,3538.0,3535.5,1.03953524]
[1641427248888,0.22455366,3537.6,3535.8,1.27544634]
[1641427249087,0.86595366,3537.6,3535.8,1.27544634]
[1641427249291,0.22455366,3537.2,3535.8,1.27544634]
[1641427249689,0.6414,3537.6,3535.5,13.12953524]
[1641427249888,0.6414,3537.6,3536.0,1.27544634]
[1641427250090,0.84814077,3537.2,3535.6,1.27544634]
[1641427250289,1.43814077,3537.2,3535.6,1.27544634]
[1641427250491,2.00479,3535.7,3535.6,1.27544634]
[1641427250689,2.234781,3535.7,3535.6,1.27544634]
[1641427250890,2.00479,3535.7,3535.6,1.27544634]
[1641427251089,2.137184,3536.0,3535.6,1.27544634]
[1641427251690,2.137184,3536.0,3534.8,2.00479]
[1641427252090,2.137184,3536.0,3535.3,1.27544634]
[1641427252592,2.00479,3535.6,3535.3,1.27544634]
[1641427252789,2.137184,3535.6,3534.8,2.00479]
[1641427252991,2.137184,3535.6,3535.4,1.27544634]
[1641427253890,2.137184,3535.6,3535.2,1.27544634]
[1641427254089,2.137184,3535.6,3534.8,3.28023634]
[1641427254493,2.00479,3534.9,3534.5,1.27544634]
[1641427254692,0.132394,3534.8,3534.5,1.27544634]
[1641427254891,0.229991,3534.7,3534.5,1.27544634]
[1641427255493,0.229991,3534.7,3533.1,32.4435]
[1641427255693,0.229991,3534.7,3534.3,1.27544634]
[1641427255892,0.229991,3534.7,3533.3,1.5]
[1641427256093,0.229991,3534.7,3534.6,1.27544634]
[1641427256292,0.229991,3534.7,3533.1,32.4435]
[1641427256493,2.00479,3534.5,3533.8,1.27544634]
[1641427256696,0.35694766,3534.4,3533.2,1.27544634]
[1641427256894,0.132394,3534.4,3533.2,1.27544634]
[1641427257293,0.132394,3534.4,3532.4,32.2804]
[1641427257492,0.132394,3534.4,3533.2,1.27544634]
[1641427257893,0.132394,3534.4,3532.4,32.2804]
[1641427258095,12.222394,3534.4,3533.2,1.27544634]
[1641427258293,12.222394,3534.4,3533.0,1.27544634]
[1641427258597,2.00479,3533.1,3533.0,1.27544634]
[1641427258794,2.234781,3533.1,3533.0,1.27544634]
[1641427259397,2.367175,3533.1,3533.0,1.27544634]
[1641427259596,2.367175,3533.1,3532.6,1.27544634]
[1641427260197,2.367175,3533.1,3532.3,2.00479]
[1641427260399,0.91676004,3534.8,3533.0,2.77544634]
[1641427260602,2.00479,3533.9,3533.1,2.00479]
[1641427260800,2.00479,3533.9,3533.8,1.27544634]
[1641427261100,2.00479,3533.9,3533.8,1.86314634]
[1641427262108,1.76819,3533.9,3533.8,1.86314634]
[1641427264610,1.998181,3533.9,3533.4,1.27544634]
[1641427265110,1.998181,3533.9,3533.2,1.27544634]
[1641427265111,0.132394,3533.8,3533.2,1.27544634]
[1641427265910,0.132394,3533.8,3532.3,5.63875355]
[1641427266111,1.76819,3533.9,3533.5,1.27544634]
[1641427266610,1.76819,3533.9,3533.2,1.27544634]
[1641427267010,0.132394,3533.8,3533.2,1.27544634]
[1641427267212,1.76819,3533.9,3532.6,13.59]
[1641427267411,1.76819,3533.9,3533.8,1.27544634]
[1641427267609,1.76819,3533.9,3533.8,1.94714634]
[1641427267610,1.998181,3533.9,3533.8,1.94714634]
[1641427267811,1.76819,3533.9,3533.8,1.94714634]
[1641427268012,0.22455366,3535.1,3533.8,1.94714634]
[1641427268413,0.22455366,3534.0,3533.8,0.6717]
[1641427268612,4.371965,3533.9,3532.6,1.27544634]
[1641427269012,4.371965,3533.9,3533.5,1.27544634]
[1641427269212,4.371965,3533.9,3532.3,4.00958]
[1641427269513,4.371965,3533.9,3532.4,1.27544634]
[1641427269912,0.22455366,3533.8,3532.4,1.27544634]
[1641427270113,0.59,3533.8,3532.4,1.27544634]
[1641427270315,4.00958,3533.9,3532.5,1.27544634]
[1641427270513,2.00479,3533.1,3532.5,1.27544634]
[1641427270716,2.137184,3533.1,3532.7,1.27544634]
[1641427270913,2.137184,3533.1,3532.5,1.27544634]
[1641427271517,2.137184,3533.1,3532.6,1.27544634]
[1641427272518,2.137184,3533.1,3532.3,4.00958]
[1641427272715,2.137184,3533.1,3532.3,5.28502634]
[1641427273117,2.00479,3533.1,3532.3,4.00958]
[1641427273321,2.00479,3533.1,3532.3,5.28502634]
[1641427273518,2.00479,3533.1,3532.5,1.27544634]
[1641427273718,2.00479,3533.1,3532.3,4.00958]
[1641427273918,2.00479,3533.1,3532.5,1.27544634]
[1641427274119,0.22455366,3532.7,3531.0,32.6466]
[1641427274320,12.09,3533.0,3531.7,1.27544634]
[1641427274523,2.00479,3531.9,3531.7,1.27544634]
[1641427274821,0.229991,3531.8,3531.7,1.27544634]
[1641427275221,0.362385,3531.8,3531.7,1.27544634]
[1641427275623,0.362385,3531.8,3530.7,2.00479]
[1641427275624,13.19243866,3531.8,3530.7,2.00479]
[1641427275926,0.22455366,3531.7,3529.8,2.8609861]
[1641427276323,0.22455366,3531.7,3529.7,29.7421]
[1641427276324,0.22455366,3531.4,3529.9,1.27544634]
[1641427276526,2.00479,3530.8,3530.2,1.27544634]
[1641427276723,2.137184,3530.8,3530.0,2.00479]
[1641427277324,2.36173766,3530.8,3530.0,2.00479]
[1641427277525,2.137184,3530.8,3530.0,2.00479]
[1641427278430,0.22455366,3530.4,3530.0,2.00479]
[1641427278628,0.132394,3530.3,3530.0,2.00479]
[1641427278827,0.229991,3530.2,3530.0,2.00479]
[1641427279326,0.132394,3530.1,3530.0,2.00479]
[1641427281325,0.132394,3530.1,3529.0,1.27544634]
[1641427281525,0.22455366,3529.8,3528.2,1.41601141]
[1641427281731,0.132394,3529.7,3527.9,31.2622]
[1641427282327,0.22455366,3529.5,3528.5,1.27544634]
[1641427282628,2.00479,3529.1,3528.5,1.27544634]
[1641427282827,2.137184,3529.1,3528.5,1.27544634]
[1641427284427,0.22455366,3528.7,3526.8,1.27544634]
[1641427284627,2.00479,3527.8,3527.0,2.00479]
[1641427284829,0.132394,3527.7,3527.0,2.00479]
[1641427285228,1.5494187,3527.7,3526.6,2.00479]
[1641427285428,12.222394,3527.7,3526.5,1.27544634]
[1641427285629,1.41717933,3527.3,3526.5,1.27544634]
[1641427285828,0.22455366,3526.9,3525.3,3.00271909]
[1641427286030,0.22455366,3526.9,3526.0,1.27544634]
[1641427286232,4.666572,3526.8,3526.1,1.27544634]
[1641427286629,4.00958,3526.2,3526.1,1.27544634]
[1641427286929,4.239571,3526.2,3525.5,1.27544634]
[1641427287131,4.371965,3526.2,3525.3,1.58553976]
[1641427287331,0.22455366,3526.0,3525.3,1.58553976]
[1641427287733,0.132394,3526.0,3525.3,1.58553976]
[1641427287932,4.00958,3526.2,3525.3,1.58553976]
[1641427288332,5.59033123,3528.4,3526.1,1.27544634]
[1641427288533,2.00479,3526.9,3526.2,1.5]
[1641427288733,2.00479,3526.9,3526.8,1.27544634]
[1641427289334,2.00479,3527.3,3526.8,1.27544634]
[1641427289534,0.22455366,3528.8,3527.2,1.27544634]
[1641427289736,32.1213,3529.0,3527.9,1.27544634]
[1641427289935,1.41646069,3529.1,3528.4,1.27544634]
[1641427290134,0.22455366,3529.3,3528.4,2.08064634]
[1641427290334,1.41646069,3529.1,3528.4,2.08064634]
[1641427290533,4.00958,3528.5,3528.4,2.08064634]
[1641427290735,4.00958,3528.5,3528.4,0.8052]
[1641427291038,5.42630156,3528.5,3525.6,1.41706486]
[1641427291234,2.04925812,3528.3,3526.9,1.27544634]
[1641427291437,2.04925812,3528.3,3527.2,1.27544634]
[1641427291438,1.82470446,3528.3,3527.2,1.27544634]
[1641427291637,1.82470446,3528.3,3525.3,5.467]
[1641427291638,4.76021466,3528.2,3525.3,6.967]
[1641427291835,0.5933,3528.4,3526.4,1.27544634]
[1641427292033,1.41689821,3528.0,3526.2,1.5]
[1641427292233,4.536754,3528.1,3527.0,1.27544634]
[1641427292435,5.42628952,3528.5,3527.0,2.03654634]
[1641427292634,2.00479,3527.3,3527.0,0.7611]
[1641427292833,2.00479,3527.3,3527.2,1.27544634]
[1641427293037,2.00479,3527.7,3527.2,1.27544634]
[1641427293233,2.00479,3527.7,3527.0,0.7611]
[1641427293433,2.00479,3527.7,3527.2,1.27544634]
[1641427293636,2.00479,3527.7,3527.0,2.03654634]
[1641427293833,2.00479,3527.7,3527.5,1.27544634]
[1641427294033,2.234781,3527.7,3526.5,2.00479]
[1641427294433,2.234781,3527.7,3526.5,3.28023634]
[1641427294634,2.234781,3527.7,3526.7,1.27544634]
[1641427295034,2.234781,3527.7,3526.5,2.00479]
[1641427295235,1.41722753,3527.2,3525.2,1.41722753]
[1641427295435,0.88345366,3527.2,3525.5,1.4171231]
[1641427295635,1.41748065,3526.6,3525.3,1.27544634]
[1641427295835,1.41729985,3527.0,3525.0,2.91729985]
[1641427296037,1.41729985,3527.0,3525.6,1.27544634]
[1641427296437,0.59,3527.4,3525.6,1.27544634]
[1641427296735,2.00479,3525.7,3525.6,1.27544634]
[1641427298136,31.842,3527.7,3525.6,2.69243691]
[1641427298340,1.41690624,3528.0,3526.7,1.27544634]
[1641427298538,0.22455366,3528.8,3526.7,0.5798]
[1641427298739,2.00479,3527.2,3527.0,1.27544634]
[1641427298936,2.00479,3527.6,3527.0,1.27544634]
[1641427299139,2.00479,3527.6,3526.4,2.00479]
[1641427299140,0.22455366,3527.5,3526.4,2.00479]
[1641427299339,0.22455366,3528.1,3526.4,2.00479]
[1641427299639,0.22455366,3528.1,3527.0,1.27544634]
[1641427299640,1.41703876,3527.7,3527.0,1.27544634]
[1641427299837,0.132394,3527.6,3527.0,1.27544634]
[1641427300037,0.132394,3527.6,3526.4,2.00479]
[1641427300038,12.31455366,3528.4,3526.4,2.00479]
[1641427300239,0.22455366,3528.1,3526.4,2.00479]
[1641427300639,12.94025765,3528.4,3526.4,2.00479]
[1641427300640,2.00479,3527.2,3526.4,2.00479]
[1641427301443,0.22455366,3528.6,3527.1,1.27544634]
[1641427301641,0.22455366,3528.6,3527.4,1.27544634]
[1641427301841,1.64122906,3528.6,3527.1,0.6747]
[1641427302041,1.41681189,3528.2,3527.2,1.27544634]
[1641427302640,2.00479,3528.1,3527.2,2.00479]
[1641427302842,2.00479,3528.1,3527.6,1.27544634]
[1641427303042,2.00479,3528.1,3527.6,0.7916]
[1641427303244,2.00479,3528.1,3528.0,1.27544634]
[1641427303845,0.22455366,3530.4,3528.0,1.27544634]
[1641427304044,0.22455366,3530.4,3527.6,0.7916]
[1641427304243,12.31455366,3530.4,3527.7,13.59]
[1641427304443,0.22455366,3530.4,3528.9,1.27544634]
[1641427304643,2.00479,3529.2,3528.9,1.27544634]
[1641427304844,0.22455366,3530.4,3528.9,1.27544634]
[1641427305050,0.22455366,3530.4,3528.4,2.00479]
[1641427305051,0.81455366,3530.9,3529.1,1.27544634]
[1641427305246,1.41602745,3530.2,3529.0,1.27544634]
[1641427305446,1.41602745,3530.2,3529.1,1.27544634]
[1641427305645,0.22455366,3531.1,3529.5,1.27544634]
[1641427306447,0.16009087,3531.0,3529.5,2.09754634]
[1641427306647,0.22455366,3529.9,3529.5,0.8221]
[1641427306846,14.09479,3530.1,3528.4,2.00479]
[1641427306847,0.132394,3529.8,3528.4,2.00479]
[1641427307045,0.98232319,3529.8,3527.6,1.27544634]
[1641427307246,1.41654496,3528.9,3526.9,31.66954496]
[1641427307447,1.99914496,3528.9,3527.7,1.27544634]
[1641427307646,12.09,3528.8,3526.9,31.66954496]
[1641427307846,1.64141574,3528.1,3526.5,1.27544634]
[1641427308046,0.22455366,3527.4,3526.3,1.27544634]
[1641427308246,0.22455366,3527.3,3526.3,1.27544634]
[1641427308447,0.22455366,3527.3,3525.6,1.41705281]
[1641427308448,0.6373,3527.3,3526.9,2.37830964]
[1641427308648,14.31934366,3527.0,3526.9,2.37830964]
[1641427308846,14.54933466,3527.0,3526.9,2.33380964]
[1641427309048,14.324781,3527.0,3526.9,2.33380964]
[1641427309246,18.993672,3527.0,3526.9,2.33380964]
[1641427309446,2.234781,3527.0,3526.9,2.33380964]
[1641427309646,2.00479,3527.0,3526.9,2.33380964]
[1641427310048,2.00479,3527.0,3526.7,4.44652585]
[1641427310248,29.97045366,3528.8,3526.7,4.44652585]
[1641427310451,29.97045366,3528.8,3526.7,5.06792585]
[1641427310650,2.00479,3527.7,3527.3,1.27544634]
[1641427310847,2.00479,3527.7,3526.9,2.00479]
[1641427311854,0.132394,3527.6,3526.6,2.00479]
[1641427312067,0.22455366,3526.7,3523.4,1.02171171]
[1641427312252,0.22455366,3526.1,3524.5,1.27544634]
[1641427312450,1.41811586,3525.0,3524.5,1.27544634]
[1641427312650,1.41811586,3525.0,3523.3,29.7066]
[1641427312651,4.00958,3524.6,3523.7,1.27544634]
[1641427312950,1.64287468,3524.5,3523.3,2.00479]
[1641427313152,1.41832102,3524.5,3523.3,2.00479]
[1641427313354,0.22455366,3524.2,3523.3,2.00479]
[1641427313555,1.41868723,3523.6,3522.9,2.00479]
[1641427314151,0.5252,3524.2,3523.5,1.27544634]
[1641427314350,0.5252,3524.2,3522.9,2.00479]
[1641427314752,0.5252,3524.2,3524.1,2.00479]
[1641427314951,0.887585,3524.2,3524.1,2.00479]
[1641427315150,0.755191,3524.2,3523.9,2.00479]
[1641427315350,0.5252,3524.2,3523.9,2.00479]
[1641427315555,3.42275907,3525.4,3524.1,1.27544634]
[1641427315751,0.22455366,3526.5,3524.4,1.27544634]
[1641427315951,0.22455366,3526.5,3523.9,2.68969]
[1641427316152,0.22455366,3526.7,3524.4,1.27544634]
[1641427316354,0.22455366,3527.3,3524.1,1.5]
[1641427316554,0.22455366,3527.3,3524.6,12.09]
[1641427316757,0.16026027,3527.2,3525.5,2.00479]
[1641427317156,4.28622905,3527.7,3525.6,1.27544634]
[1641427317355,4.28622905,3527.7,3526.2,1.27544634]
[1641427317560,4.87622905,3527.7,3526.2,1.27544634]
[1641427317755,1.41728779,3527.1,3525.9,1.27544634]
[1641427317955,1.41728779,3527.1,3525.5,2.00479]
[1641427318155,1.41728779,3527.1,3525.6,1.5]
[1641427318355,1.41728779,3527.1,3526.7,1.27544634]
[1641427318556,31.27615366,3529.0,3526.7,1.27544634]
[1641427318756,2.00479,3527.3,3526.5,2.00479]
[1641427318956,1.54963961,3527.2,3526.5,2.00479]
[1641427319158,0.132394,3527.2,3526.5,2.00479]
[1641427320558,0.22455366,3526.9,3526.5,2.00479]
[1641427320757,0.132394,3526.8,3525.5,2.00479]
[1641427321658,2.00479,3526.9,3526.7,1.27544634]
[1641427321860,2.00479,3526.9,3526.7,0.6182]
[1641427322058,42.21799999,3529.7,3526.7,0.6182]
[1641427322059,0.22455366,3529.0,3526.7,0.6182]
[1641427322460,0.22455366,3528.7,3526.7,1.89364634]
[1641427322660,2.00479,3528.1,3528.0,1.27544634]
[1641427322860,0.16020803,3528.6,3528.0,1.86254634]
[1641427323062,4.28622905,3529.3,3528.5,1.27544634]
[1641427323261,0.132394,3529.2,3528.4,1.27544634]
[1641427323560,0.132394,3529.2,3527.2,2.00479]
[1641427323760,0.132394,3529.2,3528.0,1.27544634]
[1641427323960,0.22455366,3528.6,3527.2,2.00479]
[1641427324161,0.132394,3529.2,3527.2,2.00479]
[1641427324162,0.22455366,3528.9,3527.2,2.00479]
[1641427324566,0.22455366,3528.2,3527.2,2.00479]
[1641427324761,3.42198942,3527.3,3525.9,2.00479]
[1641427324963,4.08588942,3527.3,3525.9,2.00479]
[1641427325367,12.09,3527.2,3525.9,2.00479]
[1641427325568,12.09,3527.2,3525.1,1.27544634]
[1641427325569,1.41748869,3526.6,3525.1,1.27544634]
[1641427325868,1.41748869,3526.6,3524.6,0.85114046]
[1641427325869,1.41772181,3526.0,3524.6,0.85114046]
[1641427326067,0.5581,3526.0,3524.2,0.85125668]
[1641427326267,0.5581,3526.0,3524.9,1.5]
[1641427326471,0.5581,3526.0,3525.1,1.27544634]
[1641427326671,0.5581,3526.0,3525.8,1.27544634]
[1641427327070,2.00479,3526.4,3525.8,1.27544634]
[1641427327270,2.00479,3526.4,3525.6,2.00479]
[1641427327472,2.00479,3526.4,3525.9,1.27544634]
[1641427328671,2.00479,3526.4,3525.6,2.00479]
[1641427329274,0.132394,3526.3,3525.6,0.082391]
[1641427329874,2.00479,3526.4,3526.2,1.27544634]
[1641427330074,2.00479,3527.3,3526.3,1.5]
[1641427330276,2.00479,3527.3,3527.2,1.27544634]
[1641427330474,2.00479,3527.3,3526.2,0.821]
[1641427330475,2.00479,3527.3,3527.1,1.27544634]
[1641427330682,2.00479,3527.3,3526.8,2.00479]
[1641427330876,0.362385,3527.2,3525.6,1.27544634]
[1641427331080,12.452385,3527.2,3524.2,1.27544634]
[1641427331278,0.85056811,3527.1,3524.1,30.6676]
[1641427331480,0.85056811,3527.1,3525.6,1.27544634]
[1641427331677,0.85056811,3527.1,3524.7,1.27544634]
[1641427331879,0.85056811,3527.1,3524.1,32.1676]
[1641427332182,1.41793087,3525.5,3524.7,1.27544634]
[1641427332380,0.132394,3525.4,3525.0,1.27544634]
[1641427332778,2.00479,3525.1,3525.0,1.27544634]
[1641427332978,2.367175,3525.1,3524.0,3.28023634]
[1641427333181,2.367175,3525.1,3524.2,1.27544634]
[1641427333182,2.137184,3525.1,3524.2,1.27544634]
[1641427333379,2.137184,3525.1,3524.0,2.00479]
[1641427333580,1.41809977,3525.0,3524.0,2.00479]
[1641427333779,2.00479,3525.1,3524.0,2.00479]
[1641427333979,14.09479,3525.1,3524.0,2.00479]
[1641427334179,1.41850813,3524.1,3522.5,1.5]
[1641427334379,1.41850813,3524.1,3522.8,1.27544634]
[1641427334380,1.93810813,3524.1,3522.8,1.27544634]
[1641427334582,1.93810813,3524.1,3523.6,1.27544634]
[1641427334782,2.00479,3523.7,3523.6,1.27544634]
[1641427335780,12.09,3526.2,3523.6,1.27544634]
[1641427335983,32.2054,3527.4,3525.2,1.27544634]
[1641427336283,1.2246421,3527.6,3525.3,1.27544634]
[1641427336484,32.6167,3527.5,3525.3,1.27544634]
[1641427336782,2.00479,3525.9,3525.1,2.00479]
[1641427336982,0.132394,3525.8,3525.5,1.27544634]
[1641427337182,0.229991,3525.7,3524.8,3.28023634]
[1641427337384,1.41794494,3525.4,3524.8,1.27544634]
[1641427337785,14.61049,3525.9,3524.8,1.27544634]
[1641427337984,14.61049,3525.9,3523.4,0.59]
[1641427338186,14.61049,3525.9,3523.3,61.6467]
[1641427338386,14.61049,3525.9,3523.7,1.27544634]
[1641427338686,2.00479,3524.6,3524.3,1.27544634]
[1641427338885,2.70789,3524.6,3524.3,1.27544634]
[1641427339085,12.09,3524.5,3523.6,1.27544634]
[1641427339285,2.70789,3524.6,3523.6,1.27544634]
[1641427339485,2.70789,3524.6,3524.0,1.27544634]
[1641427339786,2.840284,3524.6,3524.0,1.27544634]
[1641427340786,2.00479,3524.1,3523.5,2.00479]
[1641427340985,2.137184,3524.1,3523.6,1.27544634]
[1641427341684,2.137184,3524.1,3523.5,2.00479]
[1641427341888,2.137184,3524.1,3521.6,30.2876]
[1641427341889,2.684484,3524.1,3523.0,1.27544634]
[1641427342088,2.684484,3524.1,3522.3,1.5]
[1641427342286,2.684484,3524.1,3523.6,2.84548852]
[1641427342489,2.684484,3524.1,3523.6,1.57004218]
[1641427342687,2.00479,3523.7,3523.6,1.57004218]
[1641427342886,2.367175,3523.7,3523.6,1.57004218]
[1641427343087,2.137184,3523.7,3523.6,1.57004218]
[1641427343486,2.00479,3523.7,3523.6,2.84548852]
[1641427344087,2.00479,3524.1,3523.6,2.77544634]
[1641427344286,2.00479,3524.1,3524.0,1.27544634]
[1641427345188,2.00479,3524.1,3523.6,0.8459]
[1641427345393,4.28622905,3525.2,3524.0,1.27544634]
[1641427345586,4.28622905,3525.2,3524.7,1.27544634]
[1641427345789,4.28622905,3525.2,3524.8,1.27544634]
[1641427345987,4.28622905,3525.2,3524.7,0.5985]
[1641427346487,3.15522905,3525.8,3525.1,1.27544634]
[1641427346687,3.28762305,3525.8,3525.1,1.27544634]
[1641427346889,3.28762305,3525.8,3525.3,2.00479]
[1641427347288,0.132394,3525.8,3525.3,2.00479]
[1641427347887,0.22455366,3525.4,3524.9,2.00479]
[1641427348087,0.132394,3525.3,3524.9,2.00479]
[1641427348488,0.132394,3525.3,3524.3,1.57004218]
[1641427348892,2.00479,3524.9,3524.3,1.57004218]
[1641427349092,0.132394,3524.8,3524.3,1.57004218]
[1641427349292,0.132394,3524.8,3524.1,2.00479]
[1641427349494,1.41826268,3524.6,3523.9,1.57004218]
[1641427349693,0.132394,3524.5,3523.9,1.57004218]
[1641427350494,1.41854636,3524.0,3523.9,1.57004218]
[1641427350693,2.43873736,3524.0,3523.9,1.57004218]
[1641427350899,2.43873736,3524.0,3523.2,1.57004218]
[1641427350900,13.33474466,3524.0,3523.2,1.57004218]
[1641427351094,14.75339969,3524.0,3523.2,1.57004218]
[1641427351296,0.22455366,3523.5,3523.2,1.57004218]
[1641427351510,0.229991,3523.4,3523.2,1.57004218]
[1641427351700,0.132394,3523.4,3523.2,1.57004218]
[1641427351994,2.20885503,3524.0,3523.2,1.57004218]
[1641427352194,12.222394,3523.9,3523.2,1.57004218]
[1641427352595,1.41882411,3523.3,3523.2,1.57004218]
[1641427352899,1.41882411,3523.3,3522.6,2.35660756]
[1641427352900,1.64881511,3523.3,3522.8,1.57004218]
[1641427353098,2.00479,3523.4,3522.8,1.57004218]